Cogmind - Beta 14 @@@ ROGUE MODE // 2024.12.31 @ 06:18:47 Player: block30 Result: Destroyed by Y8-V6J(R) with Subdweller Machine Gun Performance ------------- Evolutions (0) 0 Regions Visited (2) 400 Robots Destroyed (23) 115 Value Destroyed (765) 765 Prototype IDs (2) 40 Alien Tech Used (0) 0 Bonus (8) 8 TOTAL SCORE: 1328 Bonus ------- High Alert Combat Kills 8 Cogmind --------- Core Integrity 0/250 Matter 261/300 Energy 100/100 System Corruption 2% Temperature Cool (0) Movement Core (400) Ox7 Location -10/Subcaves Parts ------- > --- POWER (1) -------- (None) > --- PROPULSION (2) --- (None) > --- UTILITY (2) ------ Large Storage Unit Structural Scanner > --- WEAPON (2) ------- Light Assault Rifle > --- INVENTORY (15) --- Light Nuclear Core Aluminum Leg Aluminum Leg Aluminum Leg Heat Sink Improved Heat Sink Sensor Array Light Armor Plating Light Armor Plating Grenade Launcher Datajack Peak State ------------ > --- POWER ------------ Ion Engine > --- PROPULSION ------- Aluminum Leg Aluminum Leg > --- UTILITY ---------- Small Storage Unit Medium Armor Plating > --- WEAPON ----------- Datajack Heavy Hammer > --- INVENTORY -------- Light Nuclear Core Aluminum Leg Medium Armor Plating EM Pulse Gun Light Assault Rifle Light Assault Rifle Grenade Launcher [Rating: 10] Favorites ----------- Power Ion Engine Engine Ion Engine Power Core Light Nuclear Core Propulsion Aluminum Leg Leg Aluminum Leg Utility Large Storage Unit Device Structural Scanner Storage Large Storage Unit Protection Medium Armor Plating Weapon Light Assault Rifle Energy Gun EM Pulse Gun Ballistic Gun Light Assault Rifle Ballistic Cannon Light Cannon Impact Weapon Heavy Hammer Special Melee Weapon Datajack Build | -11 -10 -10 ------- Run | Yrd Mat Sub Slots Evolved . | . . . Power . | . . . Propulsion . | . . . Utility . | . . . Weapon . | . . . Parts Attached 38 | 9 27 2 Power 5 | 3 2 . Engine 4 | 3 1 . Core 1 | . 1 . Reactor . | . . . Propulsion 9 | 2 7 . Treads . | . . . Leg 9 | 2 7 . Wheel . | . . . Hover . | . . . Flight . | . . . Utility 9 | 1 8 . Device 2 | . 2 . Storage 4 | 1 3 . Processor . | . . . Hackware . | . . . Protection 3 | . 3 . Artifact . | . . . Weapon 15 | 3 10 2 Energy Gun 2 | 1 . 1 Energy Cannon . | . . . Ballistic Gun 6 | 2 3 1 Ballistic Cannon 3 | . 3 . Launcher . | . . . Special Weapon . | . . . Impact Weapon 1 | . 1 . Slashing Weapon . | . . . Piercing Weapon . | . . . Special Melee Weapon 3 | . 3 . Unidentified Prototypes . | . . . Parts Lost 8 | . 2 6 Power 1 | . . 1 Propulsion 3 | . 1 2 Utility 1 | . 1 . Weapon 3 | . . 3 Highest Loss Streak 6 | . 1 6 To Critical Strikes . | . . . Average Slot Usage (%) 91 | . 92 79 Engine 12 | . 13 8 Leg 27 | . 27 18 Device 7 | . 7 14 Storage 14 | . 14 14 Protection 5 | . 6 . Ballistic Gun 11 | . 10 14 Ballistic Cannon 7 | . 7 8 Special Melee Weapon 2 | . 3 . Peak Build Rating 10 | 6 10 8 Average Rating 7 | 4 7 6 On Entrance 4 | . 6 8 Naked Turns . | . . . Heaviest Build 88 | 13 88 30 Greatest Support 20 | 20 20 20 Greatest Overweight (x) 4 | . 4 1 Average Overweight (x) . | . . 1 Largest Inventory Capacity 25 | 8 25 15 Average Capacity 13 | 6 14 15 Most Carried 15 | 5 15 13 Average Carried 11 | 1 11 12 Final Capacity 15 | 8 15 15 Final Carried 13 | 2 13 11 Class Distribution -------------------- 98% | Mutant Dominant Class ---------------- Mutant | -10/Materials Mutant | -10/Subcaves Resources | -11 -10 -10 ----------- Run | Yrd Mat Sub Matter Collected 772 | 192 580 . Remotely . | . . . Salvage Created 829 | . 781 48 Parts 39 | . 39 . Haulers Intercepted . | . . . Recyclers Shooed . | . . . Parts Field Recycled . | . . . Retrieved Matter . | . . . Parts Self-Destructed 5 | . . 5 Prevented . | . . . Kills | -11 -10 -10 ------- Run | Yrd Mat Sub Combat Hostiles Destroyed 23 | . 22 1 Melee 1 | . 1 . Guns 6 | . 5 1 Cannons 16 | . 16 . Classes Destroyed 3 | . 2 1 Swarmer 3 | . 3 . Grunt 19 | . 19 . Subdweller 1 | . . 1 Best Kill Streak 8 | . 8 1 Combat Bots Only 8 | . 8 1 Max Kills in Single Turn 1 | . 1 1 Gunslinging . | . . . Exploded . | . . . Melee 1 | . 1 . Uniques/NPCs Destroyed . | . . . Combat | -11 -10 -10 -------- Run | Yrd Mat Sub Hostile Shots Fired 142 | . 105 37 Missed 39 | . 31 8 Damage Taken 1477 | . 799 678 Core 260 | . 86 174 Absorbed by Shields . | . . . Core Remaining (%) 100 | 100 . . Volleys Fired 84 | . 60 24 Largest 2 | . 2 2 Hottest 60 | . 55 60 Shots Fired 110 | . 81 29 Gun 63 | . 38 25 Cannon 47 | . 43 4 Launcher . | . . . Special . | . . . Kinetic 109 | . 81 28 Thermal . | . . . Explosive . | . . . Electromagnetic 1 | . . 1 Robot Hit Streak 19 | . 12 19 Robot Miss Streak 3 | . 3 1 Penetration Max . | . . . Secondary Targets . | . . . Shots Hit Robots 88 | . 63 25 Core Hits 36 | . 30 6 Critical Kills . | . . . Critical Parts Destroyed 1 | . 1 . Critical Strikes 3 | . 2 1 Blast 2 | . 1 1 Smash 1 | . 1 . Melee Attacks 7 | . 7 . Impact 2 | . 2 . Slashing . | . . . Piercing . | . . . Sneak Attacks 2 | . 2 . Combat Hostiles . | . . . Follow-up Attacks . | . . . Damage Inflicted 984 | . 802 182 Guns 378 | . 215 163 Cannons 567 | . 548 19 Explosions . | . . . Melee 23 | . 23 . Ramming 16 | . 16 . Kinetic 945 | . 763 182 Thermal . | . . . Explosive . | . . . Electromagnetic . | . . . Impact 23 | . 23 . Slashing . | . . . Piercing . | . . . Highest Corruption 2 | . 2 2 Average Corruption 2 | . 2 2 Corruption Purged . | . . . Corruption Blocked . | . . . Effects 17 | . 16 1 Message Errors 5 | . 5 . Matter Fused 3 | . 2 1 Energy Discharges 3 | . 3 . Data Loss (minor) 4 | . 4 . Alerts 2 | . 2 . Overload Shots . | . . . Overflow Damage 23 | . 23 . Projectiles . | . . . Explosions . | . . . Melee 23 | . 23 . Knockbacks 6 | . 6 . Impact . | . . . Kinetic 6 | . 6 . Secondary . | . . . Self-Inflicted Damage . | . . . Shots . | . . . Rammed . | . . . Targets Rammed 2 | . 2 . Kicked 2 | . 2 . Crushed . | . . . Highest Temperature 244 | . 88 244 Average Temperature 32 | . 26 121 Received Heat Transfer 725 | . 384 341 Siege Activations . | . . . Robots Corrupted . | . . . Combat Hostiles . | . . . Parts Fried . | . . . Impact Corruptions 1 | . 1 . Robots Melted . | . . . Combat Hostiles . | . . . Parts Melted . | . . . Heat Transferred . | . . . Parts Sabotaged . | . . . Parts Stolen . | . . . Parts Stripped . | . . . Power Chain Reactions . | . . . Alert | -11 -10 -10 ------- Run | Yrd Mat Sub Peak Influence 416 | . 416 . Initial . | . . . Average 218 | . 226 . Maximum Alert Level 2 | . 2 . Low Security (%) 29 | 100 26 . Level 1 70 | . 72 . Level 2 . | . . . Level 3 . | . . . Level 4 . | . . . Level 5 . | . . . High Security . | . . . Max Security . | . . . Squads Dispatched 6 | . 6 . Investigation 3 | . 3 . Extermination . | . . . Reinforcement 3 | . 3 . Assault . | . . . Garrison . | . . . Intercept . | . . . Searches Triggered . | . . . Construction Impeded . | . . . Haulers Reinforced . | . . . Active Scanning Responses . | . . . Cargo Convoy Interrupts . | . . . Stealth | -11 -10 -10 --------- Run | Yrd Mat Sub Distress Signals 5 | . 5 . Communications Jammed . | . . . Distress Signals . | . . . Times Spotted 49 | . 47 2 Peak Tracking Total 7 | . 7 2 Tactical Retreats 6 | . 6 . Traps | -11 -10 -10 ------- Run | Yrd Mat Sub Traps Triggered 4 | . 4 . Indirectly . | . . . Trap Hack Attempts . | . . . Triggered . | . . . Disarmed . | . . . Reprogrammed . | . . . Reused . | . . . Traps Extracted . | . . . Installed . | . . . Triggered . | . . . Machines | -11 -10 -10 ---------- Run | Yrd Mat Sub Machines Disabled 1 | . 1 . Max in Single Turn 1 | . 1 . Machines Repaired . | . . . Machines Dismantled . | . . . Machines Sabotaged . | . . . Overloaded Fab Kills . | . . . Hacking | -11 -10 -10 --------- Run | Yrd Mat Sub Machines Accessed 5 | . 5 . Terminals 3 | . 3 . Fabricators . | . . . Repair Stations 1 | . 1 . Recycling Units 1 | . 1 . Scanalyzers . | . . . Garrison Access . | . . . Total Hacks 7 | . 7 . Successful 4 | . 4 . Failed 3 | . 3 . Catastrophic . | . . . Database Lockouts . | . . . Manual . | . . . Terminals 3 | . 3 . Fabricators . | . . . Repair Stations 3 | . 3 . Recycling Units 1 | . 1 . Scanalyzers . | . . . Garrison Access . | . . . Terminal Hacks 2 | . 2 . Prototype ID Bank 1 | . 1 . Locate Traps 1 | . 1 . Fabricator Hacks . | . . . Repair Station Hacks 1 | . 1 . Scan Component 1 | . 1 . Recycling Unit Hacks 1 | . 1 . Process 1 | . 1 . Scanalyzer . | . . . Garrison Access Hacks . | . . . Unauthorized Hacks . | . . . Terminals . | . . . Fabricators . | . . . Repair Stations . | . . . Recycling Units . | . . . Scanalyzers . | . . . Garrison Access . | . . . Data Cores Recovered . | . . . Used . | . . . Hacking Detections 1 | . 1 . Full Trace Events 1 | . 1 . Feedback Events . | . . . Feedback Blocked . | . . . Robot Schematics Acquired . | . . . Robots Built . | . . . Authchips . | . . . Time . | . . . Total Robot Build Rating . | . . . Part Schematics Acquired . | . . . Parts Built . | . . . Authchips . | . . . Time . | . . . Total Part Build Rating . | . . . Parts Repaired . | . . . Time . | . . . Parts Recycled . | . . . Recycled Matter . | . . . Retrieved Matter . | . . . Retrieved Components . | . . . Parts Scanalyzed . | . . . Part Schematics Acquired . | . . . Parts Damaged . | . . . Bothacking | -11 -10 -10 ------------ Run | Yrd Mat Sub Used RIF Installer . | . . . Robots Hacked 3 | . 3 . Non-combat 2 | . 2 . Combat 1 | . 1 . Robot Hacks Applied 3 | . 3 . parse_system 2 | . 2 . no_distress 1 | . 1 . Relay Couplers Released . | . . . Fabnet Peak Effective % . | . . . Robots Rewired . | . . . Allies Hacked . | . . . Hacks Repelled . | . . . Allies | -11 -10 -10 -------- Run | Yrd Mat Sub Total Allies . | . . . Largest Group . | . . . Highest-Rated Group . | . . . Highest-Rated Ally . | . . . Total Orders . | . . . Ally Attacks . | . . . Total Damage . | . . . Kills . | . . . Allies Corrupted . | . . . Allies Melted . | . . . Intel | -11 -10 -10 ------- Run | Yrd Mat Sub Robot Analysis Total . | . . . Derelict Logs Recovered . | . . . Drone Launches . | . . . Drone Recoveries . | . . . Exploration | -11 -10 -10 ------------- Run | Yrd Mat Sub Turns Passed 2192 | 80 2011 101 Spaces Moved 1025 | 58 946 21 Core 10 | 10 . . Treads . | . . . Legs 1015 | 48 946 21 Wheels . | . . . Hover . | . . . Flight . | . . . Fastest Speed 50 | 50 120 190 Average Speed 178 | 107 182 190 Slowest Speed 400 | 120 400 190 Overloaded Moves . | . . . Propulsion Burnouts . | . . . Robots Hopped . | . . . Cave-ins Triggered . | . . . Exploration Rate (%) 33 | 4 94 3 Regions Visited 2 Branch Regions 1 Pre-discovered Areas . | . . . Known Exits Taken . | . . . Unknown Exits Taken 2 | 1 1 . Scrap Searched . | . . . Spaces Dug . | . . . Terrain Destroyed . | . . . Melee . | . . . Projectile . | . . . AOE . | . . . Terrain Rammed . | . . . Walls Destroyed . | . . . Machines Disabled . | . . . Actions | -11 -10 -10 --------- Run | Yrd Mat Sub Total 1286 | 75 1153 58 Wait 73 | . 62 11 Move 1023 | 57 945 21 Hop . | . . . Pick Up 39 | 7 32 . Fast Attach 1 | 1 . . Attach 19 | 7 10 2 Detach 3 | 2 1 . Swap 18 | 1 17 . Drop 17 | . 17 . Fire 84 | . 60 24 Melee 7 | . 7 . Ram . | . . . Kick 2 | . 2 . Crush . | . . . Escape Stasis . | . . . Rewire . | . . . Trap . | . . . Miscellaneous . | . . . Route ------- -11/Scrapyard -10/Materials (discovered 5 exits: [*Mat x3] / [*Min] / [*Sub]) -10/Subcaves History --------- Turn | Location | Event 6 | -11/Scrapyard | Discovered new exit (range 16) 81 | -11/Scrapyard | Entered Materials 309 | -10/Materials | Build established: Mutant 345 | -10/Materials | Discovered new exit (range 16) 744 | -10/Materials | Destroyed 8 combat bots 1268 | -10/Materials | Discovered new exit (range 9) 1653 | -10/Materials | Discovered new exit (range 7) 1849 | -10/Materials | Discovered new exit (range 16) 1849 | -10/Materials | Discovered new exit (range 16) 2092 | -10/Materials | Entered Subcaves 2126 | -10/Subcaves | Ambushed by Subdwellers from Twisted Machinery 2155 | -10/Subcaves | Core integrity fell below 50% 2171 | -10/Subcaves | Core integrity fell below 20% 2193 | -10/Subcaves | Destroyed by Y8-V6J(R) with Subdweller Machine Gun Last Messages --------------- AMBIENT_HEAT=-10 GOAL=ESCAPE 02126_ JB-J5J(R) emerges from the Twisted Machinery. 02149_ JB-J5J(R) Sub. Power Source blasted off. 02152_ System corrupted: Matter fused (-9). 02152_ Lgt. Cannon destroyed. 02153_ Ion Engine destroyed. 02155_ Lgt. Assault Rifle destroyed. 02159_ Aluminum Leg destroyed. 02160_ EM Pulse Gun destroyed. 02163_ Critical hit (Meltdown: +260). 02165_ JB-J5J(R) destroyed. 02166_ Aluminum Leg destroyed. 02174_ Subatomizers dissect the Sub. Power Source. 02184_ Y8-V6J(R) affixes Scrap Shield Fragment to Scrap Shield. 02186_ Subatomizers dissect the Sub. Power Source. Map ----- +----------------------------------------------------+ | ?????????????????????????????????????????????????? | | ?????????????????????????????????????????????????? | | ?????????????????????????????????????????????????? | | ?????????????????????????????????????????????????? | | ?????????????????????????????????????????????????? | | ?????????????????????????????????????????????????? | | ?????????????????????????????????????????????????? | | ??????????????????????##"????????????????????????? | | ??????????????????????## "???????????????????????? | | ??????????????????## ""??????????????????????? | | ??????????????????## "??????????????????????? | | ?????????????? #### ??????????????????????? | | ?????????????? ## ?? ??????????????????????? | | ?????????????? ? ####??????????????????? | | ??????????????? ## ####??????????????????? | | ?????????????? ## #??????????????????? | | ??????????????? ????????????????????? | | ????????????????? #???????????????????? | | ??????????????????? ###??????????????????? | | ????????????????????? ###??????????????????? | | ?????????????????????## ##??????????????????? | | ?????????????????????### ###??????????????????? | | ???????????????????##### ###??????????????????? | | ???????????????????###### ##??????????????????? | | ??????????????????### ###*R ##??????????????????? | | ??????????????????### @% ###??????????????????? | | ??????????????????## % ##??????????????????? | | ??????????????????## ### ###??????????????????? | | ?????????????????### ### ##??????????????????? | | ??????????????###### #### # ??????????????????? | | ?????????????###### ### ## ??????????????? | | ?????????????### ## ?????????????? | | ???????????#### # # ?????????????? | | ??????????### #####?????????????? | | ??????????## #######?????????????? | | ??????????########## ## #####????????????????? | | ??????????#####################??????????????????? | | ??????????????????############???????????????????? | | ?????????????????????????????????????????????????? | | ?????????????????????????????????????????????????? | | ?????????????????????????????????????????????????? | | ?????????????????????????????????????????????????? | | ?????????????????????????????????????????????????? | | ?????????????????????????????????????????????????? | | ?????????????????????????????????????????????????? | | ?????????????????????????????????????????????????? | | ?????????????????????????????????????????????????? | | ?????????????????????????????????????????????????? | | ?????????????????????????????????????????????????? | | ?????????????????????????????????????????????????? | +----------------------------------------------------+ Best States ------------- Heat Dissipation 35 Energy Generation 14 Energy Capacity 250 Matter Stores 300 Matter Capacity 300 Sight Range 16 Terrain Scan Density 10 Armor Coverage 225 Evasion (%) 55 Item Schematics ----------------- None Robot Schematics ------------------ None Fabricated ------------ Nothing Alien Tech Used ----------------- None Achievements -------------- None Challenges ------------ None Game ------ Seed SuperquantumReinforcedSuite Manual? 0 Play Time 00:32:58 Cumulative 9.5 hours Start 2024.12.30 @ 22:12:37 End 2024.12.31 @ 06:18:47 Sessions 3 Manual Loads 0 Difficulty Rogue Special Mode None Game No. 34 Rogue 32 Adventurer 1 Explorer 1 Win Type - Total 0 Types 0/0/0/0/0/0/0/0/0 Lore% 10 Gallery% 10 Achievement% 16 Wizard Run 0 Options --------- Layout 1 ASCII 0 Keyboard 0 Movement Mouse Keybinds 0 Fullscreen 2 Font 24/Smallcaps Map View 50x35 Zoom Use 0% Tactical HUD 1 Map Filters NONE Filters NONE Steam 1 RUN: 530eb0dc-7c5f-4f51-a2cd-80fa65263e7d